[Event "January 9 Late 2024"]
[Site "https://www.chess.com"]
[Date "2024.01.09"]
[Round "6"]
[White "Erigaisi Arjun"]
[Black "Kozak, Antoni"]
[Result "0-1"]
[Board "37"]
[TimeControl "180+1"]
[WhiteFideId "35009192"]
[BlackFideId "21832030"]
[WhiteElo "3015"]
[BlackElo "2757"]
[WhiteTeam "IND"]
[BlackTeam "POL"]
[WhiteClock "0:00:41"]
[BlackClock "0:00:50"]

1. c4 {[%clk 0:03:00]}  e6 {[%clk 0:02:58]} 2. Nf3 {[%clk 0:02:59]}  d5 {[%clk 0:02:59]} 3. e3 {[%clk 0:03:00]}  Nf6 {[%clk 0:02:58]} 4. b3 {[%clk 0:02:58]}  Nbd7 {[%clk 0:02:59]} 5. Bb2 {[%clk 0:02:55]}  Bd6 {[%clk 0:02:59]} 6. Nc3 {[%clk 0:02:53]}  O-O {[%clk 0:03:00]} 7. d4 {[%clk 0:02:45]}  b6 {[%clk 0:02:56]} 8. Qc2 {[%clk 0:02:45]}  a6 {[%clk 0:02:54]} 9. g4 {[%clk 0:02:42]}  Bb7 {[%clk 0:02:54]} 10. g5 {[%clk 0:02:41]}  Ne4 {[%clk 0:02:53]} 11. Nxe4 {[%clk 0:02:38]}  dxe4 {[%clk 0:02:52]} 12. Nd2 {[%clk 0:02:39]}  Qxg5 {[%clk 0:02:45]} 13. Nxe4 {[%clk 0:02:37]}  Qg6 {[%clk 0:02:44]} 14. f3 {[%clk 0:02:37]}  f5 {[%clk 0:02:31]} 15. Nxd6 {[%clk 0:02:37]}  Bxf3 {[%clk 0:02:28]} 16. Bg2 {[%clk 0:02:01]}  Qxg2 {[%clk 0:02:11]} 17. Qxg2 {[%clk 0:02:01]}  Bxg2 {[%clk 0:02:11]} 18. Rg1 {[%clk 0:02:02]}  Bf3 {[%clk 0:02:10]} 19. d5 {[%clk 0:02:00]}  e5 {[%clk 0:02:03]} 20. Rg3 {[%clk 0:01:56]}  Bh5 {[%clk 0:02:00]} 21. Ba3 {[%clk 0:01:45]}  cxd6 {[%clk 0:01:58]} 22. Bxd6 {[%clk 0:01:46]}  Rfe8 {[%clk 0:01:57]} 23. Rg5 {[%clk 0:01:43]}  Bg6 {[%clk 0:01:54]} 24. h4 {[%clk 0:01:43]}  Nf6 {[%clk 0:01:53]} 25. Bc7 {[%clk 0:01:44]}  b5 {[%clk 0:01:47]} 26. d6 {[%clk 0:01:44]}  Re6 {[%clk 0:01:38]} 27. Rd1 {[%clk 0:01:38]}  Be8 {[%clk 0:01:36]} 28. Rg2 {[%clk 0:01:29]}  Bc6 {[%clk 0:01:35]} 29. Rc2 {[%clk 0:01:29]}  Nd7 {[%clk 0:01:34]} 30. cxb5 {[%clk 0:01:28]}  Bxb5 {[%clk 0:01:34]} 31. a4 {[%clk 0:01:28]}  Rh6 {[%clk 0:01:27]} 32. axb5 {[%clk 0:01:23]}  axb5 {[%clk 0:01:28]} 33. Rd5 {[%clk 0:01:22]}  Rxh4 {[%clk 0:01:22]} 34. Rxb5 {[%clk 0:01:21]}  Rh1+ {[%clk 0:01:17]} 35. Kd2 {[%clk 0:01:19]}  Kf7 {[%clk 0:01:18]} 36. Kc3 {[%clk 0:01:17]}  Ke6 {[%clk 0:01:14]} 37. b4 {[%clk 0:01:09]}  g5 {[%clk 0:01:12]} 38. Ra5 {[%clk 0:01:09]}  Rg8 {[%clk 0:01:08]} 39. b5 {[%clk 0:01:06]}  g4 {[%clk 0:01:08]} 40. b6 {[%clk 0:01:06]}  g3 {[%clk 0:01:09]} 41. Raa2 {[%clk 0:01:05]}  Rb1 {[%clk 0:01:04]} 42. Rd2 {[%clk 0:00:48]}  h5 {[%clk 0:01:01]} 43. Kc2 {[%clk 0:00:46]}  Rb5 {[%clk 0:00:56]} 44. Ra1 {[%clk 0:00:46]}  h4 {[%clk 0:00:54]} 45. Rh1 {[%clk 0:00:45]}  g2 {[%clk 0:00:54]} 46. Rxh4 {[%clk 0:00:45]}  g1=Q {[%clk 0:00:51]} 47. Rh6+ {[%clk 0:00:41]}  Rg6 {[%clk 0:00:50]} 0-1

[Event "January 9 Late 2024"]
[Site "https://www.chess.com"]
[Date "2024.01.09"]
[Round "6"]
[White "Caruana, Fabiano"]
[Black "Timmermans, Mark"]
[Result "1-0"]
[Board "38"]
[TimeControl "180+1"]
[WhiteFideId "2020009"]
[BlackFideId "1026399"]
[WhiteElo "3011"]
[BlackElo "2750"]
[WhiteTeam "USA"]
[BlackTeam "NED"]
[WhiteClock "0:00:35"]
[BlackClock "0:00:11"]

1. c3 {[%clk 0:03:00]}  Nf6 {[%clk 0:02:59]} 2. d4 {[%clk 0:03:00]}  e6 {[%clk 0:03:00]} 3. Bg5 {[%clk 0:03:00]}  d5 {[%clk 0:03:00]} 4. e3 {[%clk 0:03:00]}  Be7 {[%clk 0:03:01]} 5. Nd2 {[%clk 0:03:00]}  Nbd7 {[%clk 0:03:00]} 6. Bd3 {[%clk 0:03:00]}  b6 {[%clk 0:03:00]} 7. Ngf3 {[%clk 0:03:00]}  Bb7 {[%clk 0:03:00]} 8. O-O {[%clk 0:03:00]}  Ne4 {[%clk 0:02:59]} 9. Bxe7 {[%clk 0:03:00]}  Qxe7 {[%clk 0:03:00]} 10. Qc2 {[%clk 0:03:00]}  f5 {[%clk 0:02:59]} 11. a4 {[%clk 0:02:57]}  a5 {[%clk 0:02:54]} 12. b4 {[%clk 0:02:54]}  O-O {[%clk 0:02:51]} 13. b5 {[%clk 0:02:51]}  Rfc8 {[%clk 0:02:36]} 14. c4 {[%clk 0:02:42]}  c6 {[%clk 0:02:36]} 15. bxc6 {[%clk 0:02:42]}  Bxc6 {[%clk 0:02:33]} 16. Qb3 {[%clk 0:02:38]}  Rab8 {[%clk 0:02:21]} 17. Rfc1 {[%clk 0:02:34]}  g5 {[%clk 0:02:19]} 18. Nf1 {[%clk 0:02:18]}  g4 {[%clk 0:02:17]} 19. N3d2 {[%clk 0:02:11]}  Qh4 {[%clk 0:01:54]} 20. Nxe4 {[%clk 0:02:05]}  dxe4 {[%clk 0:01:45]} 21. Be2 {[%clk 0:02:02]}  Qe7 {[%clk 0:01:41]} 22. Ng3 {[%clk 0:01:58]}  Kh8 {[%clk 0:01:30]} 23. d5 {[%clk 0:01:52]}  Ba8 {[%clk 0:01:24]} 24. Qb2+ {[%clk 0:01:46]}  Kg8 {[%clk 0:01:23]} 25. Rd1 {[%clk 0:01:35]}  Nf6 {[%clk 0:01:19]} 26. Qe5 {[%clk 0:01:27]}  Kf7 {[%clk 0:00:45]} 27. dxe6+ {[%clk 0:01:20]}  Qxe6 {[%clk 0:00:46]} 28. Qxf5 {[%clk 0:01:20]}  Qxf5 {[%clk 0:00:43]} 29. Nxf5 {[%clk 0:01:21]}  Rd8 {[%clk 0:00:44]} 30. Nd4 {[%clk 0:01:14]}  h5 {[%clk 0:00:39]} 31. g3 {[%clk 0:01:13]}  Nd7 {[%clk 0:00:39]} 32. Rab1 {[%clk 0:01:02]}  Nc5 {[%clk 0:00:35]} 33. Rb5 {[%clk 0:00:52]}  Rd6 {[%clk 0:00:19]} 34. h3 {[%clk 0:00:48]}  gxh3 {[%clk 0:00:13]} 35. Bxh5+ {[%clk 0:00:43]}  Kf6 {[%clk 0:00:14]} 36. Rdb1 {[%clk 0:00:39]}  Nxa4 {[%clk 0:00:14]} 37. Rf5+ {[%clk 0:00:38]}  Ke7 {[%clk 0:00:13]} 38. Rf7+ {[%clk 0:00:35]}  Kd8 {[%clk 0:00:13]} 39. Rf8+ {[%clk 0:00:34]}  Kc7 {[%clk 0:00:11]} 40. Nb5+ {[%clk 0:00:35]} 1-0

[Event "January 9 Late 2024"]
[Site "https://www.chess.com"]
[Date "2024.01.09"]
[Round "6"]
[White "Skvortsov, Andrei"]
[Black "Hess, Robert"]
[Result "0-1"]
[Board "43"]
[TimeControl "180+1"]
[WhiteFideId "24108600"]
[BlackFideId "2022036"]
[WhiteElo "2690"]
[BlackElo "2909"]
[WhiteTeam "MNE"]
[BlackTeam "USA"]
[WhiteClock "0:00:28"]
[BlackClock "0:00:06"]

1. e4 {[%clk 0:03:00]}  d5 {[%clk 0:03:00]} 2. e5 {[%clk 0:02:57]}  c5 {[%clk 0:03:00]} 3. c3 {[%clk 0:02:57]}  d4 {[%clk 0:02:56]} 4. cxd4 {[%clk 0:02:56]}  cxd4 {[%clk 0:02:57]} 5. Bb5+ {[%clk 0:02:56]}  Bd7 {[%clk 0:02:57]} 6. e6 {[%clk 0:02:56]}  fxe6 {[%clk 0:02:54]} 7. Bc4 {[%clk 0:02:56]}  g6 {[%clk 0:02:19]} 8. Nf3 {[%clk 0:02:51]}  Bg7 {[%clk 0:02:19]} 9. O-O {[%clk 0:02:49]}  Nc6 {[%clk 0:02:15]} 10. Re1 {[%clk 0:02:46]}  e5 {[%clk 0:02:12]} 11. a3 {[%clk 0:02:38]}  Nh6 {[%clk 0:02:11]} 12. d3 {[%clk 0:02:37]}  Nf5 {[%clk 0:01:55]} 13. b4 {[%clk 0:02:30]}  a6 {[%clk 0:01:43]} 14. Ng5 {[%clk 0:02:26]}  Nd6 {[%clk 0:01:29]} 15. Be6 {[%clk 0:02:14]}  h6 {[%clk 0:01:10]} 16. Bxd7+ {[%clk 0:01:59]}  Qxd7 {[%clk 0:01:11]} 17. Ne4 {[%clk 0:01:52]}  Nxe4 {[%clk 0:01:10]} 18. dxe4 {[%clk 0:01:52]}  Qe6 {[%clk 0:00:49]} 19. Nd2 {[%clk 0:01:52]}  O-O {[%clk 0:00:49]} 20. Nf1 {[%clk 0:01:46]}  Na7 {[%clk 0:00:43]} 21. Bd2 {[%clk 0:01:40]}  Nb5 {[%clk 0:00:43]} 22. f3 {[%clk 0:01:35]}  Rac8 {[%clk 0:00:39]} 23. Qe2 {[%clk 0:01:27]}  Rfd8 {[%clk 0:00:35]} 24. Qd3 {[%clk 0:01:26]}  Qc4 {[%clk 0:00:35]} 25. Qxc4+ {[%clk 0:01:25]}  Rxc4 {[%clk 0:00:36]} 26. Rec1 {[%clk 0:01:25]}  Rdc8 {[%clk 0:00:34]} 27. Kf2 {[%clk 0:01:23]}  Nxa3 {[%clk 0:00:28]} 28. Rxa3 {[%clk 0:01:14]}  Rxc1 {[%clk 0:00:27]} 29. Bxc1 {[%clk 0:01:15]}  Rxc1 {[%clk 0:00:28]} 30. b5 {[%clk 0:01:10]}  Rc2+ {[%clk 0:00:27]} 31. Ke1 {[%clk 0:01:03]}  axb5 {[%clk 0:00:27]} 32. Nd2 {[%clk 0:01:01]}  Bf6 {[%clk 0:00:19]} 33. Kd1 {[%clk 0:00:48]}  Rb2 {[%clk 0:00:16]} 34. Kc1 {[%clk 0:00:46]}  Rb4 {[%clk 0:00:15]} 35. Kc2 {[%clk 0:00:46]}  Ra4 {[%clk 0:00:09]} 36. Rb3 {[%clk 0:00:45]}  Bg5 {[%clk 0:00:09]} 37. f4 {[%clk 0:00:39]}  Bxf4 {[%clk 0:00:09]} 38. Nf3 {[%clk 0:00:40]}  Ra2+ {[%clk 0:00:10]} 39. Kd3 {[%clk 0:00:40]}  Rxg2 {[%clk 0:00:10]} 40. Rxb5 {[%clk 0:00:40]}  Rf2 {[%clk 0:00:09]} 41. Nh4 {[%clk 0:00:40]}  Kf7 {[%clk 0:00:06]} 42. Rxb7 {[%clk 0:00:28]}  Bg5 {[%clk 0:00:06]} 0-1

[Event "January 9 Late 2024"]
[Site "https://www.chess.com"]
[Date "2024.01.09"]
[Round "6"]
[White "Livaic, Leon"]
[Black "Baziuk, Vladyslav"]
[Result "1-0"]
[Board "44"]
[TimeControl "180+1"]
[WhiteFideId "14531534"]
[BlackFideId "34107940"]
[WhiteElo "2888"]
[BlackElo "2682"]
[WhiteTeam "CRO"]
[BlackTeam "UKR"]
[WhiteClock "0:00:10"]
[BlackClock "0:00:08"]

1. d4 {[%clk 0:03:00]}  Nf6 {[%clk 0:03:00]} 2. c4 {[%clk 0:03:00]}  e6 {[%clk 0:03:00]} 3. Nf3 {[%clk 0:03:00]}  c5 {[%clk 0:02:52]} 4. d5 {[%clk 0:03:01]}  exd5 {[%clk 0:02:53]} 5. cxd5 {[%clk 0:03:01]}  g6 {[%clk 0:02:53]} 6. Nc3 {[%clk 0:03:02]}  d6 {[%clk 0:02:54]} 7. Bg5 {[%clk 0:03:00]}  Bg7 {[%clk 0:02:53]} 8. Nd2 {[%clk 0:03:01]}  O-O {[%clk 0:02:51]} 9. e4 {[%clk 0:03:01]}  Re8 {[%clk 0:02:51]} 10. Be2 {[%clk 0:03:01]}  Na6 {[%clk 0:02:45]} 11. O-O {[%clk 0:03:00]}  Nc7 {[%clk 0:02:45]} 12. Re1 {[%clk 0:02:49]}  Rb8 {[%clk 0:02:43]} 13. a4 {[%clk 0:02:50]}  b6 {[%clk 0:02:41]} 14. Qc2 {[%clk 0:02:35]}  a6 {[%clk 0:02:34]} 15. Nc4 {[%clk 0:02:33]}  b5 {[%clk 0:02:30]} 16. axb5 {[%clk 0:02:33]}  axb5 {[%clk 0:02:30]} 17. Na5 {[%clk 0:02:34]}  Bd7 {[%clk 0:02:27]} 18. Nc6 {[%clk 0:02:25]}  Bxc6 {[%clk 0:02:25]} 19. dxc6 {[%clk 0:02:26]}  h6 {[%clk 0:02:12]} 20. Bxf6 {[%clk 0:02:20]}  Bxf6 {[%clk 0:02:07]} 21. Nd5 {[%clk 0:02:13]}  Bd4 {[%clk 0:01:55]} 22. Ra7 {[%clk 0:02:02]}  Nxd5 {[%clk 0:01:47]} 23. exd5 {[%clk 0:02:03]}  Qf6 {[%clk 0:01:47]} 24. Rf1 {[%clk 0:02:01]}  c4 {[%clk 0:01:44]} 25. Rd7 {[%clk 0:01:55]}  Bxb2 {[%clk 0:01:30]} 26. h4 {[%clk 0:01:41]}  Bd4 {[%clk 0:01:17]} 27. h5 {[%clk 0:01:39]}  g5 {[%clk 0:01:14]} 28. Bg4 {[%clk 0:01:32]}  Qf4 {[%clk 0:01:09]} 29. Be6 {[%clk 0:01:25]}  Rf8 {[%clk 0:00:43]} 30. c7 {[%clk 0:01:02]}  Ra8 {[%clk 0:00:29]} 31. Re1 {[%clk 0:00:15]}  Bxf2+ {[%clk 0:00:20]} 32. Qxf2 {[%clk 0:00:14]}  Qxf2+ {[%clk 0:00:20]} 33. Kxf2 {[%clk 0:00:14]}  fxe6+ {[%clk 0:00:21]} 34. Kg3 {[%clk 0:00:14]}  e5 {[%clk 0:00:15]} 35. Rxd6 {[%clk 0:00:14]}  Rac8 {[%clk 0:00:15]} 36. Rc6 {[%clk 0:00:14]}  Rf7 {[%clk 0:00:03]} 37. d6 {[%clk 0:00:14]}  Rd7 {[%clk 0:00:03]} 38. Rb6 {[%clk 0:00:11]}  Kf7 {[%clk 0:00:03]} 39. Rb8 {[%clk 0:00:10]}  Rcxc7 {[%clk 0:00:01]} 40. dxc7 {[%clk 0:00:11]}  Rxc7 {[%clk 0:00:02]} 41. Rxb5 {[%clk 0:00:12]}  c3 {[%clk 0:00:02]} 42. Rbxe5 {[%clk 0:00:11]}  c2 {[%clk 0:00:03]} 43. Rf1+ {[%clk 0:00:10]}  Kg7 {[%clk 0:00:03]} 44. Rc1 {[%clk 0:00:11]}  Kf6 {[%clk 0:00:04]} 45. Re2 {[%clk 0:00:11]}  Rc3+ {[%clk 0:00:04]} 46. Kh2 {[%clk 0:00:11]}  Rc4 {[%clk 0:00:05]} 47. g3 {[%clk 0:00:09]}  Rh4+ {[%clk 0:00:06]} 48. gxh4 {[%clk 0:00:09]}  gxh4 {[%clk 0:00:07]} 49. Rexc2 {[%clk 0:00:09]}  Kg5 {[%clk 0:00:08]} 50. Rg2+ {[%clk 0:00:09]}  Kxh5 {[%clk 0:00:08]} 51. Rc5# {[%clk 0:00:10]} 1-0

[Event "January 9 Late 2024"]
[Site "https://www.chess.com"]
[Date "2024.01.09"]
[Round "6"]
[White "Schroeder, Jan-Christian"]
[Black "Janaszak, Dawid"]
[Result "1-0"]
[Board "47"]
[TimeControl "180+1"]
[WhiteFideId "24662259"]
[BlackFideId "1119206"]
[WhiteElo "2839"]
[BlackElo "2641"]
[WhiteTeam "GER"]
[BlackTeam "POL"]
[WhiteClock "0:00:19"]
[BlackClock "0:00:00"]

1. e4 {[%clk 0:03:00]}  c5 {[%clk 0:03:00]} 2. Nf3 {[%clk 0:03:00]}  Nc6 {[%clk 0:03:00]} 3. Nc3 {[%clk 0:03:00]}  g6 {[%clk 0:02:59]} 4. d4 {[%clk 0:03:00]}  cxd4 {[%clk 0:03:00]} 5. Nxd4 {[%clk 0:03:00]}  Bg7 {[%clk 0:03:01]} 6. Be3 {[%clk 0:03:01]}  Nf6 {[%clk 0:03:01]} 7. Bc4 {[%clk 0:03:01]}  O-O {[%clk 0:03:01]} 8. Bb3 {[%clk 0:03:02]}  Re8 {[%clk 0:02:59]} 9. O-O {[%clk 0:02:59]}  d6 {[%clk 0:02:56]} 10. h3 {[%clk 0:03:00]}  Na5 {[%clk 0:02:54]} 11. f4 {[%clk 0:02:49]}  b6 {[%clk 0:02:44]} 12. Qf3 {[%clk 0:02:41]}  Bb7 {[%clk 0:02:34]} 13. f5 {[%clk 0:02:32]}  Rc8 {[%clk 0:02:26]} 14. Nd5 {[%clk 0:02:25]}  Nxb3 {[%clk 0:02:20]} 15. axb3 {[%clk 0:02:25]}  a6 {[%clk 0:02:02]} 16. c4 {[%clk 0:02:23]}  Rf8 {[%clk 0:01:58]} 17. Rad1 {[%clk 0:02:19]}  Nd7 {[%clk 0:01:51]} 18. Bg5 {[%clk 0:02:16]}  Bxd5 {[%clk 0:01:39]} 19. exd5 {[%clk 0:02:16]}  Bxd4+ {[%clk 0:01:38]} 20. Rxd4 {[%clk 0:02:15]}  f6 {[%clk 0:01:30]} 21. Bh6 {[%clk 0:02:15]}  Ne5 {[%clk 0:01:24]} 22. Qg3 {[%clk 0:02:15]}  Rf7 {[%clk 0:01:23]} 23. Rh4 {[%clk 0:01:47]}  b5 {[%clk 0:00:46]} 24. Re1 {[%clk 0:01:46]}  g5 {[%clk 0:00:37]} 25. Rhe4 {[%clk 0:01:31]}  bxc4 {[%clk 0:00:37]} 26. bxc4 {[%clk 0:01:32]}  Qb6+ {[%clk 0:00:36]} 27. Kh2 {[%clk 0:01:30]}  Qxb2 {[%clk 0:00:36]} 28. h4 {[%clk 0:01:30]}  g4 {[%clk 0:00:34]} 29. Bf4 {[%clk 0:01:30]}  h5 {[%clk 0:00:33]} 30. Qe3 {[%clk 0:01:17]}  Kh7 {[%clk 0:00:31]} 31. Bxe5 {[%clk 0:01:12]}  dxe5 {[%clk 0:00:29]} 32. c5 {[%clk 0:01:11]}  Rg7 {[%clk 0:00:25]} 33. c6 {[%clk 0:01:05]}  Qb5 {[%clk 0:00:20]} 34. Qd2 {[%clk 0:00:58]}  a5 {[%clk 0:00:18]} 35. Rc1 {[%clk 0:00:56]}  a4 {[%clk 0:00:14]} 36. Rb4 {[%clk 0:00:55]}  Qa5 {[%clk 0:00:12]} 37. Rb2 {[%clk 0:00:37]}  Qxd2 {[%clk 0:00:08]} 38. Rxd2 {[%clk 0:00:38]}  g3+ {[%clk 0:00:08]} 39. Kh3 {[%clk 0:00:38]}  Rg4 {[%clk 0:00:09]} 40. d6 {[%clk 0:00:37]}  exd6 {[%clk 0:00:06]} 41. Rxd6 {[%clk 0:00:38]}  Rd4 {[%clk 0:00:04]} 42. Rxf6 {[%clk 0:00:36]}  a3 {[%clk 0:00:05]} 43. c7 {[%clk 0:00:29]}  Rd7 {[%clk 0:00:04]} 44. Ra6 {[%clk 0:00:26]}  Rcxc7 {[%clk 0:00:04]} 45. Rxc7 {[%clk 0:00:27]}  Rxc7 {[%clk 0:00:05]} 46. Rxa3 {[%clk 0:00:27]}  Rf7 {[%clk 0:00:05]} 47. Rf3 {[%clk 0:00:25]}  Kg7 {[%clk 0:00:04]} 48. Rxg3+ {[%clk 0:00:22]}  Kf6 {[%clk 0:00:05]} 49. Rg5 {[%clk 0:00:23]}  e4 {[%clk 0:00:05]} 50. Kg3 {[%clk 0:00:23]}  Ke5 {[%clk 0:00:05]} 51. Rxh5 {[%clk 0:00:22]}  Kd4 {[%clk 0:00:00]} 52. Kf4 {[%clk 0:00:19]} 1-0

[Event "January 9 Late 2024"]
[Site "https://www.chess.com"]
[Date "2024.01.09"]
[Round "6"]
[White "Gokerkan, Cem Kaan"]
[Black "Kraiouchkine, Nikita"]
[Result "1-0"]
[Board "48"]
[TimeControl "180+1"]
[WhiteFideId "6336760"]
[BlackFideId "2607140"]
[WhiteElo "2824"]
[BlackElo "2631"]
[WhiteTeam "TUR"]
[BlackTeam "CAN"]
[WhiteClock "0:01:43"]
[BlackClock "0:01:54"]

1. e4 {[%clk 0:03:00]}  e5 {[%clk 0:03:00]} 2. Nf3 {[%clk 0:03:01]}  Nc6 {[%clk 0:03:00]} 3. Bc4 {[%clk 0:03:01]}  Nf6 {[%clk 0:03:01]} 4. d3 {[%clk 0:03:00]}  Be7 {[%clk 0:03:01]} 5. O-O {[%clk 0:03:00]}  d6 {[%clk 0:03:01]} 6. a4 {[%clk 0:02:59]}  O-O {[%clk 0:03:01]} 7. Re1 {[%clk 0:03:00]}  h6 {[%clk 0:03:01]} 8. c3 {[%clk 0:02:59]}  Bg4 {[%clk 0:03:01]} 9. h3 {[%clk 0:02:59]}  Bxf3 {[%clk 0:02:58]} 10. Qxf3 {[%clk 0:02:59]}  Kh7 {[%clk 0:02:42]} 11. a5 {[%clk 0:02:56]}  a6 {[%clk 0:02:42]} 12. Nd2 {[%clk 0:02:52]}  Qe8 {[%clk 0:02:42]} 13. Nf1 {[%clk 0:02:50]}  Ng8 {[%clk 0:02:42]} 14. Ng3 {[%clk 0:02:50]}  g6 {[%clk 0:02:42]} 15. b4 {[%clk 0:02:48]}  Bf6 {[%clk 0:02:40]} 16. b5 {[%clk 0:02:38]}  axb5 {[%clk 0:02:40]} 17. Bxb5 {[%clk 0:02:38]}  Qe6 {[%clk 0:02:33]} 18. a6 {[%clk 0:02:31]}  Nd8 {[%clk 0:02:23]} 19. Bc4 {[%clk 0:02:12]}  Qd7 {[%clk 0:02:18]} 20. axb7 {[%clk 0:02:05]}  Nxb7 {[%clk 0:02:17]} 21. Rxa8 {[%clk 0:01:59]}  Rxa8 {[%clk 0:02:18]} 22. d4 {[%clk 0:02:00]}  exd4 {[%clk 0:02:13]} 23. e5 {[%clk 0:01:59]}  Na5 {[%clk 0:02:04]} 24. Qxa8 {[%clk 0:01:54]}  Nxc4 {[%clk 0:02:04]} 25. exf6 {[%clk 0:01:54]}  d3 {[%clk 0:01:54]} 26. Qf8 {[%clk 0:01:43]} 1-0

[Event "January 9 Late 2024"]
[Site "https://www.chess.com"]
[Date "2024.01.09"]
[Round "6"]
[White "Carlsen, Magnus"]
[Black "Dubnevych, Maksym"]
[Result "1-0"]
[Board "50"]
[TimeControl "180+1"]
[WhiteFideId "1503014"]
[BlackFideId "14184001"]
[WhiteElo "3359"]
[BlackElo "2552"]
[WhiteTeam "NOR"]
[BlackTeam "UKR"]
[WhiteClock "0:01:29"]
[BlackClock "0:00:01"]

1. e4 {[%clk 0:03:00]}  c5 {[%clk 0:02:57]} 2. c3 {[%clk 0:02:57]}  Nf6 {[%clk 0:02:57]} 3. e5 {[%clk 0:02:56]}  Nd5 {[%clk 0:02:56]} 4. Nf3 {[%clk 0:02:56]}  Nc6 {[%clk 0:02:35]} 5. Bc4 {[%clk 0:02:53]}  Nb6 {[%clk 0:02:31]} 6. Bb3 {[%clk 0:02:52]}  c4 {[%clk 0:02:31]} 7. Bc2 {[%clk 0:02:51]}  d6 {[%clk 0:02:24]} 8. exd6 {[%clk 0:02:51]}  Qxd6 {[%clk 0:02:24]} 9. O-O {[%clk 0:02:50]}  Bg4 {[%clk 0:02:21]} 10. b3 {[%clk 0:02:49]}  cxb3 {[%clk 0:02:14]} 11. axb3 {[%clk 0:02:48]}  e6 {[%clk 0:02:06]} 12. d4 {[%clk 0:02:47]}  Be7 {[%clk 0:02:06]} 13. Nbd2 {[%clk 0:02:47]}  h6 {[%clk 0:02:03]} 14. Re1 {[%clk 0:02:45]}  Nd5 {[%clk 0:02:00]} 15. Ne4 {[%clk 0:02:43]}  Qc7 {[%clk 0:01:59]} 16. Bd2 {[%clk 0:02:26]}  O-O {[%clk 0:01:28]} 17. Ra2 {[%clk 0:02:01]}  Rac8 {[%clk 0:01:23]} 18. h3 {[%clk 0:01:59]}  Bh5 {[%clk 0:01:21]} 19. Ng3 {[%clk 0:01:59]}  Bg6 {[%clk 0:00:40]} 20. Bxg6 {[%clk 0:01:58]}  fxg6 {[%clk 0:00:41]} 21. Rxe6 {[%clk 0:01:57]}  Bf6 {[%clk 0:00:37]} 22. c4 {[%clk 0:01:52]}  Nxd4 {[%clk 0:00:16]} 23. Rxf6 {[%clk 0:01:48]}  Nxf6 {[%clk 0:00:12]} 24. Nxd4 {[%clk 0:01:48]}  Qd7 {[%clk 0:00:11]} 25. Be3 {[%clk 0:01:46]}  a6 {[%clk 0:00:11]} 26. Rd2 {[%clk 0:01:46]}  Qf7 {[%clk 0:00:10]} 27. Nf3 {[%clk 0:01:43]}  Rfe8 {[%clk 0:00:10]} 28. Kh2 {[%clk 0:01:39]}  b5 {[%clk 0:00:10]} 29. c5 {[%clk 0:01:38]}  Rc6 {[%clk 0:00:06]} 30. b4 {[%clk 0:01:38]}  Ne4 {[%clk 0:00:06]} 31. Nxe4 {[%clk 0:01:36]}  Rxe4 {[%clk 0:00:07]} 32. Rd6 {[%clk 0:01:35]}  Rc7 {[%clk 0:00:05]} 33. c6 {[%clk 0:01:33]}  Rxb4 {[%clk 0:00:04]} 34. Ne5 {[%clk 0:01:33]}  Qf5 {[%clk 0:00:03]} 35. Qd5+ {[%clk 0:01:32]}  Kh7 {[%clk 0:00:02]} 36. Rd8 {[%clk 0:01:33]}  Rf7 {[%clk 0:00:01]} 37. Nxf7 {[%clk 0:01:29]} 1-0

[Event "January 9 Late 2024"]
[Site "https://www.chess.com"]
[Date "2024.01.09"]
[Round "6"]
[White "Ibarra Jerez, Jose Carlos"]
[Black "Asish Panda"]
[Result "1-0"]
[Board "52"]
[TimeControl "180+1"]
[WhiteFideId "2226332"]
[BlackFideId "45012458"]
[WhiteElo "2910"]
[BlackElo "2573"]
[WhiteTeam "ESP"]
[BlackTeam "IND"]
[WhiteClock "0:00:16"]
[BlackClock "0:00:02"]

1. e4 {[%clk 0:02:52]}  e6 {[%clk 0:02:58]} 2. d4 {[%clk 0:02:52]}  d5 {[%clk 0:02:56]} 3. Nc3 {[%clk 0:02:52]}  Nf6 {[%clk 0:02:50]} 4. Bg5 {[%clk 0:02:51]}  Be7 {[%clk 0:02:49]} 5. e5 {[%clk 0:02:51]}  Nfd7 {[%clk 0:02:50]} 6. Bxe7 {[%clk 0:02:51]}  Qxe7 {[%clk 0:02:50]} 7. Qg4 {[%clk 0:02:50]}  O-O {[%clk 0:02:50]} 8. Bd3 {[%clk 0:02:49]}  c5 {[%clk 0:02:48]} 9. Nf3 {[%clk 0:02:49]}  f5 {[%clk 0:02:46]} 10. exf6 {[%clk 0:02:48]}  Nxf6 {[%clk 0:02:46]} 11. Qh4 {[%clk 0:02:48]}  Nc6 {[%clk 0:02:45]} 12. dxc5 {[%clk 0:02:45]}  Qxc5 {[%clk 0:02:42]} 13. O-O-O {[%clk 0:02:44]}  Bd7 {[%clk 0:02:37]} 14. Rhe1 {[%clk 0:02:43]}  Nb4 {[%clk 0:02:22]} 15. Ne5 {[%clk 0:02:36]}  Be8 {[%clk 0:02:08]} 16. Kb1 {[%clk 0:02:18]}  d4 {[%clk 0:01:46]} 17. Ne4 {[%clk 0:01:15]}  Qxe5 {[%clk 0:01:43]} 18. Ng5 {[%clk 0:01:15]}  Qc5 {[%clk 0:00:54]} 19. Bxh7+ {[%clk 0:01:14]}  Kh8 {[%clk 0:00:50]} 20. Nxe6 {[%clk 0:00:55]}  Qa5 {[%clk 0:00:30]} 21. a3 {[%clk 0:00:44]}  Nxh7 {[%clk 0:00:18]} 22. Nxf8 {[%clk 0:00:43]}  Qh5 {[%clk 0:00:15]} 23. Qxh5 {[%clk 0:00:21]}  Bxh5 {[%clk 0:00:15]} 24. Rxd4 {[%clk 0:00:21]}  Nc6 {[%clk 0:00:10]} 25. Rh4 {[%clk 0:00:18]}  Bf7 {[%clk 0:00:05]} 26. Nxh7 {[%clk 0:00:16]}  Bg6 {[%clk 0:00:02]} 27. Nf8+ {[%clk 0:00:16]} 1-0